Cogmind - Beta 13 @@@ ROGUE MODE // 2024.05.04 @ 20:57:18 Player: SlyFyer Result: Destroyed by P-60 Hacker with Shock Rifle Performance ------------- Evolutions (2) 1000 Regions Visited (8) 1600 Robots Destroyed (69) 345 Value Destroyed (1805) 1805 Prototype IDs (25) 500 Alien Tech Used (0) 0 Bonus (834) 834 TOTAL SCORE: 6084 Bonus ------- High Alert Combat Kills 29 Follower Combat Kills 305 Entered Garrisons 200 Aligned with FarCom 300 Cogmind --------- Core Integrity 0/550 Matter 300/300 Energy 36/100 System Corruption 6% Temperature Cool (0) Movement Hovering (46) Location -8/Garrison Parts ------- > --- POWER (1) -------- (None) > --- PROPULSION (3) --- Gravmag System Linear Gravjet > --- UTILITY (5) ------ Medium Storage Unit System Shield > --- WEAPON (2) ------- (None) > --- INVENTORY (10) --- Improved VTOL Module High-capacity Battery (250) Improved Terrain Scanner Advanced Field Recycling Unit (0) Latent Energy Streamer Hypervelocity Gauss Cannon Improved Datajack Peak State ------------ > --- POWER ------------ (None) > --- PROPULSION ------- Gravmag System Linear Gravjet Linear Gravjet > --- UTILITY ---------- Medium Storage Unit System Shield Splice Drone Bay > --- WEAPON ----------- Hypervelocity Gauss Cannon Heavy Mace > --- INVENTORY -------- Improved VTOL Module High-capacity Battery Improved Terrain Scanner Improved Field Recycling Unit Advanced Drone Bay Latent Energy Streamer Gauss Cannon Improved Datajack Plasma Cutter [Rating: 40] Favorites ----------- Power Light Ion Engine Engine Light Ion Engine Propulsion Armored Wheel Treads Light Treads Wheel Armored Wheel Hover Unit Gravmag System Flight Unit Improved VTOL Module Utility Large Storage Unit Device Seismic Detector Storage Large Storage Unit Hackware System Shield Protection Utility Shielding Weapon Makeshift Sword Ballistic Gun Assault Rifle Ballistic Cannon Hypervelocity Gauss Cannon Launcher Grenade Launcher Special Weapon Plasma Cutter Impact Weapon Flail Slashing Weapon Makeshift Sword Build | -11 -10 -10 -9 -9 -9 -8 -8 -8 ------- Run | Yrd Mat Min Mat Min Exi Min Mat Gar Slots Evolved 4 | . . . 2 . . . 2 . Power . | . . . . . . . . . Propulsion 1 | . . . . . . . 1 . Utility 3 | . . . 2 . . . 1 . Weapon . | . . . . . . . . . Parts Attached 73 | 6 10 1 16 3 . 6 13 18 Power 4 | 1 . . 1 . . 1 1 . Engine 4 | 1 . . 1 . . 1 1 . Core . | . . . . . . . . . Reactor . | . . . . . . . . . Propulsion 25 | 2 2 . 4 . . 3 6 8 Treads 2 | 2 . . . . . . . . Leg . | . . . . . . . . . Wheel 11 | . 2 . 4 . . 3 2 . Hover 7 | . . . . . . . 3 4 Flight 5 | . . . . . . . 1 4 Utility 25 | 1 3 1 7 2 . 1 5 5 Device 9 | . 1 1 2 1 . . 1 3 Storage 5 | 1 1 . . . . . 2 1 Processor . | . . . . . . . . . Hackware 1 | . . . . . . . . 1 Protection 10 | . 1 . 5 1 . 1 2 . Artifact . | . . . . . . . . . Weapon 19 | 2 5 . 4 1 . 1 1 5 Energy Gun . | . . . . . . . . . Energy Cannon . | . . . . . . . . . Ballistic Gun 7 | 2 2 . 3 . . . . . Ballistic Cannon 1 | . . . . . . . . 1 Launcher 4 | . 2 . . . . 1 . 1 Special Weapon 1 | . . . . . . . . 1 Impact Weapon 3 | . 1 . 1 . . . . 1 Slashing Weapon 3 | . . . . 1 . . 1 1 Piercing Weapon . | . . . . . . . . . Special Melee Weapon . | . . . . . . . . . Unidentified Prototypes 2 | . . 1 . . . . 1 . Parts Lost 38 | . 6 . 5 2 . 5 4 16 Power 4 | . 1 . 1 . . . 1 1 Propulsion 14 | . 2 . 2 . . 3 1 6 Utility 11 | . 1 . 1 1 . 2 2 4 Weapon 9 | . 2 . 1 1 . . . 5 Highest Loss Streak 7 | . 6 . 4 1 . 3 1 7 To Critical Strikes . | . . . . . . . . . Average Slot Usage (%) 78 | . 94 57 84 83 88 86 82 66 Engine 3 | . 12 . 2 . . 2 9 2 Treads 2 | . 23 . . . . . . . Wheel 16 | . 3 14 19 22 22 20 25 . Hover 1 | . . . . . . . 1 9 Flight 1 | . . . . . . . . 13 Device 5 | . 11 . 9 10 11 8 . 5 Storage 11 | . 14 14 11 11 11 11 9 9 Hackware 1 | . . . . . . . . 8 Protection 13 | . . . 20 19 22 22 19 4 Ballistic Gun 6 | . 24 14 10 4 . . . . Impact Weapon 7 | . 1 14 11 11 11 10 . 6 Slashing Weapon 6 | . . . . 4 11 11 15 6 Naked Turns . | . . . . . . . . . Heaviest Build 41 | 13 31 24 41 30 29 34 37 38 Greatest Support 40 | 40 40 20 24 24 24 24 34 27 Greatest Overweight (x) 8 | 1 8 2 4 1 1 2 3 4 Average Overweight (x) . | . . 1 1 1 1 1 . 1 Largest Inventory Capacity 15 | 8 15 15 15 15 15 15 15 15 Average Capacity 14 | 7 14 15 15 15 15 15 14 11 Most Carried 15 | 6 10 12 15 15 15 15 15 15 Average Carried 11 | 2 6 11 13 13 14 13 12 9 Final Capacity 15 | 8 15 15 15 15 15 15 15 10 Final Carried 15 | 3 8 12 12 14 15 11 15 7 Class Distribution -------------------- 99% | Mutant Dominant Class ---------------- Mutant | -10/Materials Mutant | -10/Mines Mutant | -9/Materials Mutant | -9/Mines Mutant | -9/Exiles Mutant | -8/Mines Mutant | -8/Materials Mutant | -8/Garrison Resources | -11 -10 -10 -9 -9 -9 -8 -8 -8 ----------- Run | Yrd Mat Min Mat Min Exi Min Mat Gar Matter Collected 1469 | 284 129 181 192 224 . 131 168 160 Remotely . | . . . . . . . . . Salvage Created 2450 | 116 462 163 95 85 . 333 767 429 Parts 107 | 8 19 4 9 7 . 17 32 11 Haulers Intercepted 5 | . 1 . . . . . 4 . Recyclers Shooed 2 | . 1 1 . . . . . . Parts Field Recycled . | . . . . . . . . . Retrieved Matter . | . . . . . . . . . Parts Self-Destructed . | . . . . . . . . . Prevented . | . . . . . . . . . Kills | -11 -10 -10 -9 -9 -9 -8 -8 -8 ------- Run | Yrd Mat Min Mat Min Exi Min Mat Gar Combat Hostiles Destroyed 53 | . 9 3 4 4 . 9 12 12 Melee 26 | . . 2 . 4 . 5 11 4 Guns 11 | . 7 . 4 . . . . . AOE 9 | . 2 . . . . 4 1 2 Classes Destroyed 12 | 2 4 1 1 1 . . 1 2 Worker 1 | . 1 . . . . . . . Builder 2 | . . . . 2 . . . . Tunneler 2 | 1 . . . . . 1 . . Hauler 5 | . 1 . . . . . 4 . Recycler 4 | 1 1 2 . . . . . . Watcher 2 | . 1 . . . . . 1 . Swarmer 17 | . . 3 3 4 . 4 3 . Cutter 3 | . . . . . . . . 3 Grunt 22 | . 9 . . . . 5 2 6 Sentry 9 | . . . 1 . . . 6 2 Hunter 1 | . . . . . . . 1 . Behemoth 1 | . . . . . . . . 1 Best Kill Streak 9 | 1 9 3 3 4 . 4 3 3 Combat Bots Only 7 | . 7 3 3 4 . 4 3 3 Max Kills in Single Turn 3 | 1 2 1 1 1 . 3 1 1 Gunslinging . | . . . . . . . . . Exploded 3 | . 1 . . . . 3 1 1 Melee 1 | . . 1 . 1 . 1 1 1 Uniques/NPCs Destroyed . | . . . . . . . . . Combat | -11 -10 -10 -9 -9 -9 -8 -8 -8 -------- Run | Yrd Mat Min Mat Min Exi Min Mat Gar Hostile Shots Fired 477 | . 94 12 124 28 . 61 50 108 Missed 130 | . 29 1 40 10 . 17 17 16 Damage Taken 5185 | . 954 87 984 211 . 675 507 1767 Core 1076 | . 149 38 177 32 . 130 33 517 Absorbed by Shields . | . . . . . . . . . Redirected to Shielding 48 | . . . 9 . . 13 9 17 Core Remaining (%) 46 | 100 . 25 . . . 15 . . Volleys Fired 70 | 6 36 . 14 5 . 2 1 6 Largest 2 | 2 2 . 1 1 . 1 1 1 Hottest 50 | 40 50 . 25 25 . 30 30 30 Shots Fired 111 | 12 70 . 14 6 . 2 1 6 Gun 95 | 12 63 . 14 6 . . . . Cannon . | . . . . . . . . . Launcher 13 | . 7 . . . . 2 1 3 Special 3 | . . . . . . . . 3 Kinetic 95 | 12 63 . 14 6 . . . . Thermal 3 | . . . . . . . . 3 Explosive 13 | . 7 . . . . 2 1 3 Electromagnetic . | . . . . . . . . . Robot Hit Streak 10 | 6 10 . 7 1 . 2 . 3 Robot Miss Streak 4 | 1 4 . 1 1 . . . 1 Penetration Max . | . . . . . . . . . Secondary Targets 2 | . 2 . . . . . . . Max Gunslinging Chain 1 | . 1 . . . . . . . Shots Hit Robots 188 | 9 49 7 10 11 . 24 44 34 Core Hits 79 | 3 27 2 5 4 . 11 16 11 Critical Kills 1 | . 1 . . . . . . . Critical Parts Destroyed 11 | 1 2 2 . 1 . . . 5 Critical Strikes 19 | 1 3 2 . 1 . 2 5 5 Destroy 2 | 1 1 . . . . . . . Smash 10 | . 2 2 . 1 . . . 5 Sever 7 | . . . . . . 2 5 . Melee Attacks 246 | . 3 10 10 18 . 45 97 63 Impact 86 | . 3 10 10 14 . 6 . 43 Slashing 160 | . . . . 4 . 39 97 20 Piercing . | . . . . . . . . . Sneak Attacks 17 | . 1 2 . 1 . 1 7 5 Combat Hostiles 8 | . . . . . . . 3 5 Follow-up Attacks 11 | . . . . . . 3 5 3 Damage Inflicted 6462 | 99 1035 303 156 369 . 1005 1813 1682 Guns 781 | 99 491 . 156 35 . . . . Cannons . | . . . . . . . . . Explosions 907 | . 416 . . . . 221 . 270 Melee 4761 | . 128 303 . 334 . 784 1813 1399 Ramming . | . . . . . . . . . Kinetic 781 | 99 491 . 156 35 . . . . Thermal 13 | . . . . . . . . 13 Explosive 907 | . 416 . . . . 221 . 270 Electromagnetic . | . . . . . . . . . Impact 1900 | . 128 303 . 260 . 42 . 1167 Slashing 2861 | . . . . 74 . 742 1813 232 Piercing . | . . . . . . . . . Highest Corruption 5 | . 1 1 1 2 2 2 . 5 Average Corruption 1 | . 1 1 1 1 2 2 . 2 Corruption Purged . | . . . . . . . . . Corruption Blocked . | . . . . . . . . . Effects 52 | . 2 11 2 10 5 21 . 1 Message Errors 10 | . 1 1 1 3 . 4 . . Matter Fused 16 | . 1 5 1 2 4 3 . . Heat Flow Errors 7 | . . 1 . . . 6 . . Energy Discharges 6 | . . . . 2 . 3 . 1 Parts Rejected 1 | . . 1 . . . . . . Parts Fused 2 | . . 1 . 1 . . . . Data Loss (minor) 6 | . . 2 . 1 . 3 . . Data Loss (major) 2 | . . . . . . 2 . . Misfires 1 | . . . . 1 . . . . Alerts 1 | . . . . . 1 . . . Overload Shots . | . . . . . . . . . Overflow Damage 685 | . 89 128 . 69 . 75 22 302 Projectiles . | . . . . . . . . . Explosions 65 | . 7 . . . . 26 . 32 Melee 620 | . 82 128 . 69 . 49 22 270 Knockbacks 3 | . . 1 . 1 . . . 1 Impact 3 | . . 1 . 1 . . . 1 Kinetic . | . . . . . . . . . Secondary . | . . . . . . . . . Self-Inflicted Damage 127 | . 16 . . . . . 40 71 Shots 4 | . 1 . . . . . 1 2 Rammed . | . . . . . . . . . Targets Rammed . | . . . . . . . . . Kicked . | . . . . . . . . . Crushed . | . . . . . . . . . Highest Temperature 244 | . 108 140 . . . 244 209 . Average Temperature 70 | . 45 77 . . . 99 98 . Received Heat Transfer 1695 | . 489 . 339 24 . 405 162 276 Siege Activations . | . . . . . . . . . Robots Corrupted . | . . . . . . . . . Combat Hostiles . | . . . . . . . . . Parts Fried 11 | . . 3 . 3 . . . 5 Impact Corruptions 23 | . 2 5 . 4 . . . 12 Robots Melted . | . . . . . . . . . Combat Hostiles . | . . . . . . . . . Parts Melted . | . . . . . . . . . Heat Transferred 37 | . . . . . . . . 37 Parts Sabotaged . | . . . . . . . . . Parts Stolen . | . . . . . . . . . Parts Stripped . | . . . . . . . . . Power Chain Reactions . | . . . . . . . . . Alert | -11 -10 -10 -9 -9 -9 -8 -8 -8 ------- Run | Yrd Mat Min Mat Min Exi Min Mat Gar Peak Influence 442 | 10 175 133 376 258 . 132 206 442 Initial 146 | . 6 53 . 146 . . 51 78 Average 119 | 3 73 35 182 105 . 61 125 274 Maximum Alert Level 2 | . . . 1 1 . . 1 2 Low Security (%) 82 | 100 100 100 56 81 . 100 95 32 Level 1 14 | . . . 43 18 . . 4 42 Level 2 3 | . . . . . . . . 25 Level 3 . | . . . . . . . . . Level 4 . | . . . . . . . . . Level 5 . | . . . . . . . . . High Security . | . . . . . . . . . Max Security . | . . . . . . . . . Squads Dispatched 12 | . 4 . 4 1 . . 3 . Investigation 9 | . 4 . 2 1 . . 2 . Extermination . | . . . . . . . . . Reinforcement 3 | . . . 2 . . . 1 . Assault . | . . . . . . . . . Garrison . | . . . . . . . . . Intercept . | . . . . . . . . . Searches Triggered . | . . . . . . . . . Construction Impeded . | . . . . . . . . . Haulers Reinforced . | . . . . . . . . . Active Scanning Responses . | . . . . . . . . . Cargo Convoy Interrupts . | . . . . . . . . . Stealth | -11 -10 -10 -9 -9 -9 -8 -8 -8 --------- Run | Yrd Mat Min Mat Min Exi Min Mat Gar Distress Signals 3 | . . . 1 . . . 2 . Communications Jammed . | . . . . . . . . . Distress Signals . | . . . . . . . . . Times Spotted 132 | . 18 3 36 9 . 16 18 32 Peak Tracking Total 15 | . 5 3 15 3 . 6 4 4 Tactical Retreats 19 | . . . 6 . . 5 2 6 Traps | -11 -10 -10 -9 -9 -9 -8 -8 -8 ------- Run | Yrd Mat Min Mat Min Exi Min Mat Gar Traps Triggered 8 | . 1 . 2 1 . . 1 3 Indirectly . | . . . . . . . . . Trap Hack Attempts . | . . . . . . . . . Triggered . | . . . . . . . . . Disarmed . | . . . . . . . . . Reprogrammed . | . . . . . . . . . Reused . | . . . . . . . . . Traps Extracted . | . . . . . . . . . Installed . | . . . . . . . . . Triggered . | . . . . . . . . . Machines | -11 -10 -10 -9 -9 -9 -8 -8 -8 ---------- Run | Yrd Mat Min Mat Min Exi Min Mat Gar Machines Disabled 1 | . . . . . . . . 1 Max in Single Turn 1 | . . . . . . . . 1 Machines Repaired . | . . . . . . . . . Machines Dismantled . | . . . . . . . . . Machines Sabotaged . | . . . . . . . . . Overloaded Fab Kills . | . . . . . . . . . Hacking | -11 -10 -10 -9 -9 -9 -8 -8 -8 --------- Run | Yrd Mat Min Mat Min Exi Min Mat Gar Machines Accessed 18 | . 3 1 2 2 2 . 7 1 Terminals 8 | . 1 . 1 . . . 5 1 Fabricators . | . . . . . . . . . Repair Stations . | . . . . . . . . . Recycling Units 3 | . 2 . 1 . . . . . Scanalyzers 1 | . . . . . . . 1 . Garrison Access 1 | . . . . . . . 1 . Total Hacks 29 | . 5 1 3 2 2 . 15 1 Successful 24 | . 4 1 1 2 2 . 13 1 Failed 5 | . 1 . 2 . . . 2 . Catastrophic 1 | . . . 1 . . . . . Database Lockouts . | . . . . . . . . . Manual 15 | . 5 . 3 . 1 . 6 . Terminals 16 | . 3 . 2 . . . 10 1 Fabricators . | . . . . . . . . . Repair Stations . | . . . . . . . . . Recycling Units 3 | . 2 . 1 . . . . . Scanalyzers 4 | . . . . . . . 4 . Garrison Access 1 | . . . . . . . 1 . Terminal Hacks 12 | . . 1 . 2 2 . 6 1 Record 1 | . . . . . 1 . . . Open Door 3 | . . 1 . 2 . . . . Emergency Access Points 1 | . . . . . . . . 1 Terminal Index 2 | . . . . . . . 2 . Alert Level 2 | . . . . . . . 2 . Recall Investigation 1 | . . . . . . . 1 . Hauler Manifests 1 | . . . . . . . 1 . Derelict Proto ID Bank 1 | . . . . . 1 . . . Fabricator Hacks . | . . . . . . . . . Repair Station Hacks . | . . . . . . . . . Recycling Unit Hacks . | . . . . . . . . . Scanalyzer 4 | . . . . . . . 4 . Insert Component 2 | . . . . . . . 2 . Analyze 2 | . . . . . . . 2 . Garrison Access Hacks 1 | . . . . . . . 1 . Unlock Access 1 | . . . . . . . 1 . Unauthorized Hacks 7 | . 4 . 1 . . . 2 . Terminals 4 | . 2 . . . . . 2 . Track 1 | . . . . . . . 1 . Botnet 1 | . 1 . . . . . . . Operators 1 | . 1 . . . . . . . Sabotage 1 | . . . . . . . 1 . Fabricators . | . . . . . . . . . Repair Stations . | . . . . . . . . . Recycling Units 3 | . 2 . 1 . . . . . Tunnel 3 | . 2 . 1 . . . . . Scanalyzers . | . . . . . . . . . Garrison Access . | . . . . . . . . . Data Cores Recovered . | . . . . . . . . . Used . | . . . . . . . . . Hacking Detections 3 | . 1 . 1 . . . 1 . Full Trace Events 2 | . 1 . 1 . . . . . Feedback Events 2 | . 1 . 1 . . . . . Corruption 2 | . 1 . 1 . . . . . Feedback Blocked . | . . . . . . . . . Robot Schematics Acquired . | . . . . . . . . . Robots Built . | . . . . . . . . . Authchips . | . . . . . . . . . Time . | . . . . . . . . . Total Robot Build Rating . | . . . . . . . . . Part Schematics Acquired 2 | . . . . . . . 2 . Parts Built . | . . . . . . . . . Authchips . | . . . . . . . . . Time . | . . . . . . . . . Total Part Build Rating . | . . . . . . . . . Parts Repaired . | . . . . . . . . . Time . | . . . . . . . . . Parts Recycled . | . . . . . . . . . Recycled Matter . | . . . . . . . . . Retrieved Matter . | . . . . . . . . . Retrieved Components . | . . . . . . . . . Parts Scanalyzed 2 | . . . . . . . 2 . Part Schematics Acquired 2 | . . . . . . . 2 . Parts Damaged . | . . . . . . . . . Bothacking | -11 -10 -10 -9 -9 -9 -8 -8 -8 ------------ Run | Yrd Mat Min Mat Min Exi Min Mat Gar Used RIF Installer . | . . . . . . . . . Robots Hacked . | . . . . . . . . . Non-combat . | . . . . . . . . . Combat . | . . . . . . . . . Robot Hacks Applied . | . . . . . . . . . Relay Couplers Released . | . . . . . . . . . Fabnet Peak Effective % . | . . . . . . . . . Robots Rewired . | . . . . . . . . . Allies Hacked . | . . . . . . . . . Hacks Repelled . | . . . . . . . . . Allies | -11 -10 -10 -9 -9 -9 -8 -8 -8 -------- Run | Yrd Mat Min Mat Min Exi Min Mat Gar Total Allies 9 | . . 2 2 3 . . . 2 Largest Group 3 | . . 2 3 3 . . . 2 Highest-Rated Group 54 | . . 42 54 40 . . . 45 Highest-Rated Ally 31 | . . 31 31 16 . . . 29 Total Orders 1 | . . . . 1 . . . . STAY 1 | . . . . 1 . . . . Ally Attacks 93 | . . . 31 33 . . . 29 Total Damage 1072 | . . . 448 370 . . . 254 Kills 11 | . . . 5 5 . . . 1 Allies Corrupted . | . . . . . . . . . Allies Melted . | . . . . . . . . . Intel | -11 -10 -10 -9 -9 -9 -8 -8 -8 ------- Run | Yrd Mat Min Mat Min Exi Min Mat Gar Robot Analysis Total . | . . . . . . . . . Derelict Logs Recovered 3 | . . 2 . 1 . . . . Drone Launches 29 | . . . 6 . . . . 23 Drone Recoveries 25 | . . . 6 . . . . 19 Exploration | -11 -10 -10 -9 -9 -9 -8 -8 -8 ------------- Run | Yrd Mat Min Mat Min Exi Min Mat Gar Turns Passed 7806 | 78 673 1269 669 1233 372 1018 1408 1086 Spaces Moved 5103 | 43 338 682 525 1071 352 599 809 684 Core 21 | 20 1 . . . . . . . Treads 293 | 23 270 . . . . . . . Legs . | . . . . . . . . . Wheels 4057 | . 67 682 525 1071 352 599 761 . Hover 300 | . . . . . . . 48 252 Flight 432 | . . . . . . . . 432 Fastest Speed 29 | 50 95 95 95 105 105 105 86 29 Average Speed 106 | 111 148 108 106 105 105 106 89 104 Slowest Speed 450 | 160 450 110 140 105 105 120 245 300 Overloaded Moves . | . . . . . . . . . Propulsion Burnouts . | . . . . . . . . . Robots Hopped . | . . . . . . . . . Cave-ins Triggered . | . . . . . . . . . Exploration Rate (%) 68 | 4 63 98 63 100 70 85 69 60 Regions Visited 8 Branch Regions 4 Pre-discovered Areas 4 | . 2 . 1 1 . . . . Known Exits Taken 1 | . . . . . . . 1 . Unknown Exits Taken 7 | 1 1 1 1 1 1 1 . . Scrap Searched 3 | . . 1 . 1 . 1 . . Spaces Dug 59 | . 7 . 9 4 . 4 35 . Terrain Destroyed 86 | . 8 . 9 4 . 14 35 16 Melee 47 | . . . 9 4 . 4 30 . Projectile . | . . . . . . . . . AOE 39 | . 8 . . . . 10 5 16 Terrain Rammed . | . . . . . . . . . Walls Destroyed . | . . . . . . . . . Machines Disabled . | . . . . . . . . . Actions | -11 -10 -10 -9 -9 -9 -8 -8 -8 --------- Run | Yrd Mat Min Mat Min Exi Min Mat Gar Total 7061 | 62 437 1196 609 1151 354 933 1367 952 Wait 1480 | . 37 499 23 49 . 286 434 152 Move 5096 | 42 337 681 524 1070 351 598 809 684 Hop . | . . . . . . . . . Pick Up 68 | 8 12 4 15 5 2 2 15 5 Fast Attach 13 | 1 . . 4 . . . 6 2 Attach 45 | 5 5 1 9 3 . 5 5 12 Detach 4 | . . 1 . . . . 1 2 Swap 15 | . 5 . 3 . . 1 2 4 Drop 26 | . 2 . 7 1 1 . 11 4 Fire 70 | 6 36 . 14 5 . 2 1 6 Melee 218 | . 3 10 10 18 . 39 83 55 Ram . | . . . . . . . . . Kick . | . . . . . . . . . Crush . | . . . . . . . . . Escape Stasis 26 | . . . . . . . . 26 Rewire . | . . . . . . . . . Trap . | . . . . . . . . . Miscellaneous . | . . . . . . . . . Route ------- -11/Scrapyard -10/Materials (discovered 3 exits: *Mat / *Min x2) -10/Mines (discovered 2 exits: *Mat x2) -9/Materials (discovered 4 exits: *Mat x3 / *Min) -9/Mines (discovered 4 exits: *Mat x2 / *Exi / [*Zio]) -9/Exiles -8/Mines -8/Materials (discovered 2 exits: [*Fac] / Gar) -8/Garrison (discovered 1 exit: [*Mat]) History --------- Turn | Location | Event 17 | -11/Scrapyard | Discovered new exit (range 15) 79 | -11/Scrapyard | Entered Materials 227 | -10/Materials | Discovered new exit (range 15) 303 | -10/Materials | Build established: Mutant 322 | -10/Materials | Discovered new exit (range 16) 496 | -10/Materials | Discovered new exit (range 7) 652 | -10/Materials | Core integrity fell below 50% 687 | -10/Materials | Destroyed 7 combat bots 691 | -10/Materials | Lost 6 parts (1p2n1u2w) 752 | -10/Materials | Entered Mines 864 | -10/Mines | Discovered new exit (range 7) 877 | -10/Mines | Found the Drone Emporium 882 | -10/Mines | Found Prototype Device 885 | -10/Mines | Identified Splice Drone Bay 1129 | -10/Mines | Learned Materials stockpile data 1181 | -10/Mines | Discovered new exit (range 10) 1182 | -10/Mines | Learned 2 Materials zone layouts 2021 | -10/Mines | Entered Materials 2021 | -9/Materials | Accompanied by 2 allies 2021 | -9/Materials | Evolved 2 slots: Utility x2 2027 | -9/Materials | Led the pair of lost Derelicts to an unsafe place 2290 | -9/Materials | Discovered new exit (range 13) 2402 | -9/Materials | Discovered new exit (range 8) 2510 | -9/Materials | Lost 4 parts (1p1n1u1w) 2638 | -9/Materials | Discovered new exit (range 3) 2685 | -9/Materials | Discovered new exit (range 6) 2690 | -9/Materials | Entered Mines 2691 | -9/Mines | A Derelict revealed a hidden shortcut to a safe place 2707 | -9/Mines | Met a Derelict shopkeep closing up shop 2807 | -9/Mines | Discovered new exit (range 7) 2834 | -9/Mines | Assisted by bots powering up and referring to "LRC-V3" 2889 | -9/Mines | Discovered new exit (range 11) 2972 | -9/Mines | Found a damaged Exp. Sensor Array with a note attached 2974 | -9/Mines | Found Prototype Device 2984 | -9/Mines | Learned Materials terminal intel 3005 | -9/Mines | Met a Derelict who couldn't figure out how to use a Trap Extractor 3178 | -9/Mines | Core integrity fell below 50% 3225 | -9/Mines | Learned location of Storage (-7) 3414 | -9/Mines | A weapon hastily lodged in a ceiling crevice suddenly fell to the ground 3919 | -9/Mines | Deemed a non-threat by the Exiles lab entrance 3919 | -9/Mines | Discovered new exit (range 5) 3923 | -9/Mines | Entered Exiles 3951 | -9/Exiles | Met 8R-AWN 3968 | -9/Exiles | Met EX-HEX 4000 | -9/Exiles | Met EX-BIN 4012 | -9/Exiles | Aligned with FarCom system 4013 | -9/Exiles | Given EX-Vault access code 4037 | -9/Exiles | Opened EX-Vault 4056 | -9/Exiles | Found Latent Energy Streamer 4095 | -9/Exiles | Warned to stay clear of 0b10 Research branches 4125 | -9/Exiles | Met EX-DEC 4285 | -9/Exiles | Discovered new exit (range 10) 4295 | -9/Exiles | Left Exiles lab with Latent Energy Streamer 4295 | -9/Exiles | Entered Mines 5092 | -8/Mines | Core integrity fell below 20% 5137 | -8/Mines | Lost 3 parts (1n2u) 5300 | -8/Mines | Discovered new exit (range 9) 5313 | -8/Mines | Entered Materials 5313 | -8/Materials | Evolved 2 slots: Propulsion x1, Utility x1 5314 | -8/Materials | Loaded intel: 12 terminal locations 6296 | -8/Materials | Discovered new exit (range 15) 6721 | -8/Materials | Identified exit to Garrison 6721 | -8/Materials | Entered Garrison 6789 | -8/Garrison | Triggered checkpoint 7008 | -8/Garrison | Lost 7 parts (1p2n2u2w) 7051 | -8/Garrison | Triggered checkpoint 7167 | -8/Garrison | Triggered checkpoint 7371 | -8/Garrison | Core integrity fell below 50% 7395 | -8/Garrison | Triggered checkpoint 7465 | -8/Garrison | Triggered checkpoint 7545 | -8/Garrison | Discovered new exit (range 8) 7593 | -8/Garrison | Spotted B-75 Beast 7642 | -8/Garrison | Destroyed B-75 Beast 7791 | -8/Garrison | Core integrity fell below 20% 7807 | -8/Garrison | Destroyed by P-60 Hacker with Shock Rifle Last Messages --------------- 07737_ Field strength at 37. 07738_ Field strength at 30. 07739_ Field strength at 23. 07740_ Field strength at 16. 07741_ Field strength at 9. 07742_ Field strength at 2. 07743_ Stasis field depleted. 07766_ Acquired 35 matter. 07783_ Plasma Cutter destroyed. 07784_ Splice Drone Bay destroyed. 07788_ Advanced Drone released from Adv. Drone Bay. 07799_ Adv. Drone Bay destroyed. 07800_ >> Lost connection to Advanced Drone. 07802_ System corrupted: Energy discharge (-16). 07802_ P-60 Hacker resets P-60 Hacker, system corruption cleaned. 07803_ Y-45 Defender suffers critical hit (Smash). 07803_ Destroyed Unknown Device. 07803_ Y-45 Defender system corrupted by crushing effect. 07805_ P-60 Hacker resets Y-45 Defender, system corruption cleaned. 07807_ Hvy. Mace destroyed. Map ----- +----------------------------------------------------+ | | | | | | | ?????????????????????????????????????????????????? | | ?????????????????????????????????????????????????? | | ?????????????????????????????????????????????????? | | ?????????????????????????????????????????????????? | | ?????????????????????????????????????????????????? | | ?????????????????????????????????????????????????? | | ???############??????????????????????????????????? | | ???#""" "#??????????????????????????????????? | | ???#""" ""#??????????????????????????????????? | | ???#"" !%[] %"#??????????????????????????????????? | | ???#" %= !"#??????????? ????????????????????? | | ???#"] ]"#?????????? ???????????????????? | | ???#"= # # ]"#???????????"""????????????????????? | | ???#"]^# # ! #???????????"""????????????????????? | | ???#"] #### ]"#??????????? ????????????????????? | | ???#" ! !"#?????????+? ?+??????????????????? | | ???#"" "#??????????? ????????????????????? | | ???### ###??????????? ????????????????????? | | ?????# #?????????????# #????????????????????? | | ?????#### ##?????????????# #????????????????????? | | ????????# #??????????##### #????????????????????? | | ????????# #??????????# # ##??????????????????++ | | ????????# #?????###### @#""##??????????????????? | | ??????###+"#???### nn pY%" #??????????????????? | | ??????# % #???#"# #####+#; ;##??????????????????? | | ??????# < #???#" #?????##p##???????????????????? | | ??????# #???#" #??????# #????????????????????? | | ??????### #???#" #??????# #????????????????????? | | ????????# #???#"# #??????# #????????????????????? | | ????????# #???###"##### ## #????????????????????? | | ????????# #?????# ## #????????????????????? | | ????????# #?????# ######## #????????????????????? | | ????????# #######"######## #######??????????????? | | ????????# g % #??????????????? | | ????????# ^ #??????????????? | | ????????############## ###+#### #??????????????? | | ?????????????????????# #??????# #??????????????? | | ?????????????????????#? #??????# #??????????????? | | ????????????????????????#??????+ #??????????????? | | ???????????????????????????????# #??????????????? | | ????????????????????????+??????# #????+?????????? | | ???????????????????????????????# #??????????????? | | ??????????????????????????#???## ##""""######???? | | ?????????????????????# ###+### ####+ | | ?????????????????????# ^ | | ?????????????????????# =%[ | | ?????????????????????########## ## ## ####+ | +----------------------------------------------------+ Best States ------------- Heat Dissipation 31 Energy Generation 10 Energy Capacity 250 Matter Stores 300 Matter Capacity 300 Sight Range 16 Terrain Scan Density 10 Armor Coverage 300 Utility Shielding 33 Evasion (%) 64 Recoil Reduction 2 Defensive Hacking 10 Item Schematics ----------------- System Shield | -8/Materials | Scanalyzed Imp. VTOL Module | -8/Materials | Scanalyzed Robot Schematics ------------------ None Fabricated ------------ Nothing Alien Tech Used ----------------- None Achievements -------------- None Challenges ------------ None Game ------ Seed CobblerProjectionRefractor Manual? 0 Play Time 01:00:09 Cumulative 75.6 hours Start 2024.05.02 @ 22:16:20 End 2024.05.04 @ 20:57:18 Sessions 2 Manual Loads 0 Difficulty Rogue Special Mode None Game No. 32 Rogue 2 Adventurer 30 Explorer 0 Win Type - Total 3 Types 2/1/0/0/0/0/0/0/0 Lore% 49 Gallery% 65 Achievement% 60 Wizard Run 0 Options --------- Layout 0 ASCII 0 Keyboard 0 Movement Mouse Keybinds 0 Fullscreen 0 Font 14/Smallcaps Map View 208x55 Zoom Use 0% Tactical HUD 1 Map Filters NONE Filters NONE Steam 1 RUN: df3d3d56-2a7b-4228-aa83-6fbbcf7da282